[Event "World Senior chT-50 2019"]
[Site "Rhodes"]
[Date "2019.04.19"]
[Round "4.20"]
[White "Homer, Stephen J"]
[Black "Maier, Christian"]
[Result "1/2-1/2"]
[ECO "C78"]
[WhiteElo "2039"]
[BlackElo "2325"]
[PlyCount "94"]
[EventDate "2019.04.16"]
[EventType "team-tourn"]
[EventCountry "GRE"]
[TimeControl "40/5400+30:1800+30"]

1. e4 {[%emt 0:00:00]} e5 {[%emt 0:00:00]} 2. Nf3 {[%emt 0:00:00]} Nc6 {[%emt 0:00:10]} 3. Bb5 {[%emt 0:00:00]} a6 {[%emt 0:02:39]} 4. Ba4 {[%emt 0:00:00]} Nf6 {[%emt 0:00:43]} 5. O-O {[%emt 0:00:00]} b5 {[%emt 0:03:57]} 6. Bb3 {[%emt 0:00:03]} Bc5 {[%emt 0:00:13]} 7. c3 {[%emt 0:03:56]} d6 {[%emt 0:00:15]} 8. d4 {[%emt 0:03:13]} Bb6 {[%emt 0:00:19]} 9. h3 {[%emt 0:11:41]} O-O {[%emt 0:02:28]} 10. Re1 {[%emt 0:11:55]} Bb7 {[%emt 0:06:49]} 11. a4 {[%emt 0:11:22]} h6 {[%emt 0:17:55]} 12. axb5 {[%emt 0:12:29]} axb5 {[%emt 0:00:16]} 13. Rxa8 {[%emt 0:00:04]} Qxa8 {[%emt 0:01:03]} 14. d5 {[%emt 0:01:07]} Ne7 {[%emt 0:01:29]} 15. Be3 {[%emt 0:05:50]} Bxe3 {[%emt 0:00:15]} 16. Rxe3 {[%emt 0:00:07]} Bc8 {[%emt 0:00:09]} 17. Na3 {[%emt 0:04:52]} Bd7 {[%emt 0:01:06]} 18. Nc2 {[%emt 0:06:32]} Ng6 {[%emt 0:01:10]} 19. Nb4 {[%emt 0:00:29]} Qa7 {[%emt 0:09:14]} 20. Kh2 {[%emt 0:01:09]} Nh7 {[%emt 0:03:21]} 21. g4 {[%emt 0:06:30]} Ng5 {[%emt 0:03:04]} 22. Nxg5 {[%emt 0:02:41]} hxg5 {[%emt 0:00:08]} 23. Nd3 {[%emt 0:00:21]} Ra8 {[%emt 0:01:35]} 24. Re1 {[%emt 0:01:00]} Qb8 {[%emt 0:08:12]} 25. Qc1 {[%emt 0:05:10]} Qd8 {[%emt 0:01:06]} 26. c4 {[%emt 0:00:48]} bxc4 {[%emt 0:01:19]} 27. Bxc4 {[%emt 0:01:23]} Qf6 {[%emt 0:08:57]} 28. Qe3 {[%emt 0:00:17]} Nh4 {[%emt 0:03:18]} 29. Rc1 {[%emt 0:01:08]} Nf3+ {[%emt 0:03:58]} 30. Kg2 {[%emt 0:00:01]} Nd4 {[%emt 0:00:17]} 31. Ne1 {[%emt 0:00:19]} Rb8 {[%emt 0:05:42]} 32. Nf3 {[%emt 0:02:38]} Rxb2 {[%emt 0:05:25]} 33. Nxg5 {[%emt 0:00:02]} g6 {[%emt 0:01:53]} 34. Nf3 {[%emt 0:02:00]} Nxf3 {[%emt 0:01:10]} 35. Qxf3 {[%emt 0:00:10]} Qg5 {[%emt 0:00:08]} 36. Qc3 {[%emt 0:02:07]} Rd2 {[%emt 0:00:23]} 37. Ra1 {[%emt 0:01:40]} Qf4 {[%emt 0:02:46]} 38. Qf3 {[%emt 0:00:36]} Rc2 {[%emt 0:00:28]} 39. Qxf4 {[%emt 0:00:55]} exf4 {[%emt 0:00:05]} 40. Bd3 {[%emt 0:00:00]} Rc3 {[%emt 0:00:00]} 41. Rd1 {[%emt 0:01:39]} Kg7 {[%emt 0:00:36]} 42. Be2 {[%emt 0:03:16]} g5 {[%emt 0:00:15]} 43. Rd3 {[%emt 0:06:49]} Rc2 {[%emt 0:03:26]} 44. Bd1 {[%emt 0:04:45]} Rc1 {[%emt 0:00:27]} 45. Bf3 {[%emt 0:00:45]} Kf6 {[%emt 0:00:29]} 46. Rd1 {[%emt 0:00:21]} Rc2 {[%emt 0:00:33]} 47. Rh1 {[%emt 0:00:50]} Rc3 {[%emt 0:08:34]} 1/2-1/2

[Event "World Senior chT-50 2019"]
[Site "Rhodes"]
[Date "2019.04.19"]
[Round "4.22"]
[White "Grabuzova, Tatiana"]
[Black "Ross, Paul"]
[Result "1-0"]
[ECO "A87"]
[WhiteElo "2323"]
[BlackElo "2237"]
[PlyCount "69"]
[EventDate "2019.04.16"]
[EventType "team-tourn"]
[EventCountry "GRE"]
[TimeControl "40/5400+30:1800+30"]

1. d4 {[%emt 0:00:00]} g6 {[%emt 0:00:00]} 2. c4 {[%emt 0:00:02]} f5 {[%emt 0:00:12]} 3. Nc3 {[%emt 0:01:54]} Nf6 {[%emt 0:00:20]} 4. Nf3 {[%emt 0:00:40]} Bg7 {[%emt 0:00:16]} 5. g3 {[%emt 0:00:16]} O-O {[%emt 0:00:16]} 6. Bg2 {[%emt 0:00:03]} d6 {[%emt 0:00:23]} 7. O-O {[%emt 0:00:07]} Na6 {[%emt 0:00:23]} 8. Rb1 {[%emt 0:13:36]} c6 {[%emt 0:01:45]} 9. b4 {[%emt 0:02:56]} Nc7 {[%emt 0:01:01]} 10. b5 {[%emt 0:08:33]} cxb5 {[%emt 0:00:50]} 11. cxb5 {[%emt 0:01:00]} h6 {[%emt 0:04:11]} 12. d5 {[%emt 0:14:29]} Rf7 {[%emt 0:23:26]} 13. e3 {[%emt 0:18:17]} Nd7 {[%emt 0:24:03]} 14. Nd4 {[%emt 0:15:53]} Nc5 {[%emt 0:01:20]} 15. Bb2 {[%emt 0:02:30]} Bd7 {[%emt 0:11:43]} 16. f4 {[%emt 0:02:11]} Rc8 {[%emt 0:03:21]} 17. e4 {[%emt 0:04:03]} fxe4 {[%emt 0:04:22]} 18. Nxe4 {[%emt 0:01:01]} Nxd5 {[%emt 0:06:19]} 19. Nxd6 {[%emt 0:00:42]} Ne3 {[%emt 0:00:18]} 20. Nxf7 {[%emt 0:04:02]} Nxd1 {[%emt 0:00:28]} 21. Nxd8 {[%emt 0:00:04]} Nxb2 {[%emt 0:00:09]} 22. Bd5+ {[%emt 0:00:03]} Kh7 {[%emt 0:04:37]} 23. N8e6 {[%emt 0:00:06]} Nxe6 {[%emt 0:01:16]} 24. Nxe6 {[%emt 0:00:07]} Bf6 {[%emt 0:01:29]} 25. Rfc1 {[%emt 0:02:59]} Rxc1+ {[%emt 0:00:11]} 26. Rxc1 {[%emt 0:00:05]} Bxb5 {[%emt 0:00:44]} 27. Rc7 {[%emt 0:00:28]} a6 {[%emt 0:03:20]} 28. g4 {[%emt 0:00:40]} Bd3 {[%emt 0:05:21]} 29. g5 {[%emt 0:00:32]} hxg5 {[%emt 0:00:03]} 30. fxg5 {[%emt 0:00:06]} Be5 {[%emt 0:00:23]} 31. Rxe7+ {[%emt 0:00:08]} Kh8 {[%emt 0:00:16]} 32. Re8+ {[%emt 0:02:56]} Kh7 {[%emt 0:00:03]} 33. Nf8+ {[%emt 0:00:39]} Kg7 {[%emt 0:00:25]} 34. Nd7 {[%emt 0:01:06]} Bd4+ {[%emt 0:00:14]} 35. Kg2 {[%emt 0:00:10]} 1-0

[Event "World Senior chT-50 2019"]
[Site "Rhodes"]
[Date "2019.04.19"]
[Round "4.23"]
[White "Barron, Michael"]
[Black "Fatalibekova, Elena"]
[Result "1-0"]
[ECO "B36"]
[WhiteElo "2124"]
[BlackElo "2148"]
[PlyCount "94"]
[EventDate "2019.04.16"]
[EventType "team-tourn"]
[EventCountry "GRE"]
[TimeControl "40/5400+30:1800+30"]

1. e4 {[%emt 0:00:00]} c5 {[%emt 0:00:00]} 2. Nf3 {[%emt 0:00:00]} Nc6 {[%emt 0:00:00]} 3. d4 {[%emt 0:00:00]} cxd4 {[%emt 0:00:00]} 4. Nxd4 {[%emt 0:00:00]} g6 {[%emt 0:00:08]} 5. c4 {[%emt 0:00:00]} Nf6 {[%emt 0:00:26]} 6. Nc3 {[%emt 0:00:00]} Nxd4 {[%emt 0:00:50]} 7. Qxd4 {[%emt 0:00:00]} d6 {[%emt 0:00:12]} 8. Be3 {[%emt 0:08:15]} Bg7 {[%emt 0:00:09]} 9. Be2 {[%emt 0:00:11]} O-O {[%emt 0:00:19]} 10. Qd2 {[%emt 0:00:27]} Be6 {[%emt 0:07:31]} 11. Rc1 {[%emt 0:01:58]} a6 {[%emt 0:05:37]} 12. O-O {[%emt 0:00:10]} Rc8 {[%emt 0:07:33]} 13. b3 {[%emt 0:02:51]} Re8 {[%emt 0:00:05]} 14. f4 {[%emt 0:04:13]} Qa5 {[%emt 0:00:52]} 15. Nd5 {[%emt 0:14:59]} Qxd2 {[%emt 0:00:25]} 16. Nxf6+ {[%emt 0:00:03]} Bxf6 {[%emt 0:01:16]} 17. Bxd2 {[%emt 0:00:02]} Bd4+ {[%emt 0:00:26]} 18. Kh1 {[%emt 0:00:02]} a5 {[%emt 0:06:31]} 19. a4 {[%emt 0:06:27]} b6 {[%emt 0:00:42]} 20. Rcd1 {[%emt 0:00:05]} Bc5 {[%emt 0:01:18]} 21. Bc3 {[%emt 0:00:53]} Red8 {[%emt 0:06:22]} 22. Rd3 {[%emt 0:01:19]} f5 {[%emt 0:01:52]} 23. Bf3 {[%emt 0:00:40]} fxe4 {[%emt 0:00:35]} 24. Bxe4 {[%emt 0:00:01]} Rf8 {[%emt 0:00:35]} 25. g3 {[%emt 0:02:13]} Bf5 {[%emt 0:02:23]} 26. Re1 {[%emt 0:00:15]} Rc7 {[%emt 0:00:44]} 27. Bd5+ {[%emt 0:01:01]} e6 {[%emt 0:01:13]} 28. Bxe6+ {[%emt 0:00:02]} Bxe6 {[%emt 0:00:06]} 29. Rxe6 {[%emt 0:00:08]} Kf7 {[%emt 0:01:41]} 30. Re2 {[%emt 0:00:02]} Re8 {[%emt 0:00:45]} 31. Rxe8 {[%emt 0:00:04]} Kxe8 {[%emt 0:00:02]} 32. Rd1 {[%emt 0:00:16]} Kf7 {[%emt 0:00:54]} 33. Kg2 {[%emt 0:00:04]} Re7 {[%emt 0:01:28]} 34. Re1 {[%emt 0:01:28]} Rxe1 {[%emt 0:00:03]} 35. Bxe1 {[%emt 0:00:14]} Ke6 {[%emt 0:00:01]} 36. Kf3 {[%emt 0:04:16]} d5 {[%emt 0:00:05]} 37. cxd5+ {[%emt 0:00:08]} Kxd5 {[%emt 0:00:01]} 38. Bc3 {[%emt 0:00:11]} h5 {[%emt 0:02:56]} 39. h3 {[%emt 0:00:04]} Bf8 {[%emt 0:01:18]} 40. Ke3 {[%emt 0:00:00]} Bc5+ {[%emt 0:00:00]} 41. Kd3 {[%emt 0:03:02]} Bd6 {[%emt 0:05:33]} 42. Bd4 {[%emt 0:01:09]} h4 {[%emt 0:00:11]} 43. gxh4 {[%emt 0:00:02]} Bxf4 {[%emt 0:00:10]} 44. Bxb6 {[%emt 0:00:13]} Bg3 {[%emt 0:02:18]} 45. Bxa5 {[%emt 0:00:03]} Bxh4 {[%emt 0:00:18]} 46. Bb6 {[%emt 0:00:32]} Kc6 {[%emt 0:08:59]} 47. Bd4 {[%emt 0:00:31]} Kd5 {[%emt 0:01:12]} 1-0

[Event "World Senior chT-50 2019"]
[Site "Rhodes"]
[Date "2019.04.19"]
[Round "4.24"]
[White "Titorenko, Natalia I"]
[Black "Chernik, Dmitry"]
[Result "1/2-1/2"]
[ECO "B50"]
[WhiteElo "2153"]
[BlackElo "1868"]
[PlyCount "102"]
[EventDate "2019.04.16"]
[EventType "team-tourn"]
[EventCountry "GRE"]
[TimeControl "40/5400+30:1800+30"]

1. e4 {[%emt 0:00:00]} c5 {[%emt 0:00:00]} 2. Nf3 {[%emt 0:00:00]} Nc6 {[%emt 0:00:00]} 3. Nc3 {[%emt 0:01:50]} d6 {[%emt 0:00:24]} 4. d3 {[%emt 0:02:57]} g6 {[%emt 0:02:06]} 5. Be3 {[%emt 0:01:43]} Bg7 {[%emt 0:00:17]} 6. Qd2 {[%emt 0:03:40]} Nd4 {[%emt 0:03:44]} 7. Nd1 {[%emt 0:04:29]} Nf6 {[%emt 0:01:19]} 8. Nxd4 {[%emt 0:01:43]} cxd4 {[%emt 0:00:18]} 9. Bxd4 {[%emt 0:00:28]} O-O {[%emt 0:00:07]} 10. f3 {[%emt 0:12:46]} e5 {[%emt 0:04:39]} 11. Be3 {[%emt 0:01:19]} Be6 {[%emt 0:00:53]} 12. c4 {[%emt 0:05:40]} b6 {[%emt 0:00:37]} 13. Be2 {[%emt 0:08:25]} Rb8 {[%emt 0:02:55]} 14. O-O {[%emt 0:01:23]} Nh5 {[%emt 0:04:39]} 15. d4 {[%emt 0:14:03]} Qe7 {[%emt 0:04:27]} 16. g3 {[%emt 0:03:21]} Rbc8 {[%emt 0:04:07]} 17. Rc1 {[%emt 0:02:13]} Bh3 {[%emt 0:03:13]} 18. Rf2 {[%emt 0:00:54]} f5 {[%emt 0:00:04]} 19. Bg5 {[%emt 0:10:22]} Bf6 {[%emt 0:00:48]} 20. Bxf6 {[%emt 0:04:45]} Qxf6 {[%emt 0:00:40]} 21. d5 {[%emt 0:03:41]} fxe4 {[%emt 0:01:08]} 22. fxe4 {[%emt 0:00:13]} Qg7 {[%emt 0:01:06]} 23. Bxh5 {[%emt 0:03:00]} gxh5 {[%emt 0:00:02]} 24. Rxf8+ {[%emt 0:00:54]} Rxf8 {[%emt 0:00:08]} 25. Nf2 {[%emt 0:00:05]} Bg4 {[%emt 0:01:40]} 26. Rf1 {[%emt 0:04:12]} Bf3 {[%emt 0:01:41]} 27. Qe3 {[%emt 0:02:06]} Qg6 {[%emt 0:00:23]} 28. Nh3 {[%emt 0:01:41]} Bxe4 {[%emt 0:06:51]} 29. Rxf8+ {[%emt 0:00:17]} Kxf8 {[%emt 0:00:11]} 30. Nf2 {[%emt 0:02:08]} Bb1 {[%emt 0:01:52]} 31. Qa3 {[%emt 0:02:20]} h4 {[%emt 0:02:18]} 32. Qf3+ {[%emt 0:02:26]} Ke7 {[%emt 0:00:53]} 33. a3 {[%emt 0:00:35]} hxg3 {[%emt 0:00:15]} 34. hxg3 {[%emt 0:00:09]} h6 {[%emt 0:03:03]} 35. b4 {[%emt 0:00:37]} e4 {[%emt 0:00:30]} 36. Qe3 {[%emt 0:00:11]} Qg5 {[%emt 0:00:19]} 37. Qxg5+ {[%emt 0:00:15]} hxg5 {[%emt 0:00:06]} 38. Nd1 {[%emt 0:00:19]} Kf6 {[%emt 0:00:55]} 39. Kf2 {[%emt 0:00:23]} Ke5 {[%emt 0:00:27]} 40. Ke3 {[%emt 0:00:00]} Bd3 {[%emt 0:00:00]} 41. Nf2 {[%emt 0:03:52]} Bxc4 {[%emt 0:04:02]} 42. Nxe4 {[%emt 0:00:03]} Bxd5 {[%emt 0:00:57]} 43. Nxg5 {[%emt 0:00:01]} Ba2 {[%emt 0:02:06]} 44. Nf3+ {[%emt 0:01:24]} Kd5 {[%emt 0:00:24]} 45. Kd3 {[%emt 0:01:00]} Bb1+ {[%emt 0:00:12]} 46. Kc3 {[%emt 0:00:13]} Bg6 {[%emt 0:00:34]} 47. Nd4 {[%emt 0:04:36]} Be8 {[%emt 0:01:46]} 48. Kd3 {[%emt 0:03:04]} Bd7 {[%emt 0:00:11]} 49. Nf3 {[%emt 0:02:15]} Bf5+ {[%emt 0:01:07]} 50. Kc3 {[%emt 0:00:35]} Ke4 {[%emt 0:01:19]} 51. Nd2+ {[%emt 0:01:09]} Kd5 {[%emt 0:02:09] Kd4+ Kxd4} 1/2-1/2

[Event "World Senior chT-50 2019"]
[Site "Rhodes"]
[Date "2019.04.19"]
[Round "4.25"]
[White "Wallner, Joachim"]
[Black "Zimmermann, Rolf"]
[Result "1-0"]
[ECO "A06"]
[WhiteElo "2271"]
[BlackElo "2086"]
[PlyCount "145"]
[EventDate "2019.04.16"]
[EventType "team-tourn"]
[EventCountry "GRE"]
[TimeControl "40/5400+30:1800+30"]

1. b3 {[%emt 0:00:00]} d5 {[%emt 0:00:54]} 2. Bb2 {[%emt 0:00:00]} c6 {[%emt 0:01:55]} 3. Nf3 {[%emt 0:00:24]} Nf6 {[%emt 0:00:33]} 4. e3 {[%emt 0:02:21]} Bg4 {[%emt 0:01:01]} 5. Be2 {[%emt 0:00:54]} e6 {[%emt 0:00:08]} 6. h3 {[%emt 0:05:15]} Bxf3 {[%emt 0:00:15]} 7. Bxf3 {[%emt 0:00:04]} Nbd7 {[%emt 0:00:34]} 8. d4 {[%emt 0:00:07]} Be7 {[%emt 0:01:53]} 9. O-O {[%emt 0:00:07]} O-O {[%emt 0:00:18]} 10. c4 {[%emt 0:00:19]} Rc8 {[%emt 0:03:44]} 11. Nd2 {[%emt 0:11:19]} Qc7 {[%emt 0:05:16]} 12. Rc1 {[%emt 0:00:14]} Qb8 {[%emt 0:00:03]} 13. Qe2 {[%emt 0:03:20]} Rfe8 {[%emt 0:01:15]} 14. g4 {[%emt 0:03:27]} h6 {[%emt 0:04:29]} 15. Bg2 {[%emt 0:00:21]} Nf8 {[%emt 0:25:58]} 16. f4 {[%emt 0:00:15]} Ng6 {[%emt 0:00:32]} 17. Qf2 {[%emt 0:04:26]} Bd6 {[%emt 0:04:12]} 18. c5 {[%emt 0:08:18]} Bc7 {[%emt 0:00:32]} 19. Bf3 {[%emt 0:04:24]} Rf8 {[%emt 0:03:06]} 20. h4 {[%emt 0:00:58]} Nd7 {[%emt 0:03:54]} 21. g5 {[%emt 0:02:54]} f5 {[%emt 0:05:35]} 22. Qg3 {[%emt 0:08:13]} Nxf4 {[%emt 0:04:25]} 23. exf4 {[%emt 0:00:05]} Bxf4 {[%emt 0:00:02]} 24. Qg2 {[%emt 0:02:44]} Be3+ {[%emt 0:04:02]} 25. Kh1 {[%emt 0:00:41]} hxg5 {[%emt 0:01:01]} 26. Rce1 {[%emt 0:01:38]} Bxd2 {[%emt 0:05:39]} 27. Qxd2 {[%emt 0:00:12]} g4 {[%emt 0:00:01]} 28. Bg2 {[%emt 0:02:08]} Rce8 {[%emt 0:01:40]} 29. Bc1 {[%emt 0:01:11]} Qd8 {[%emt 0:04:21]} 30. Qf2 {[%emt 0:00:25]} Nf6 {[%emt 0:01:09]} 31. Bg5 {[%emt 0:01:32]} Qd7 {[%emt 0:00:42]} 32. Bf4 {[%emt 0:04:05]} Nh5 {[%emt 0:00:56]} 33. Bd6 {[%emt 0:02:29]} f4 {[%emt 0:02:56]} 34. Bxf8 {[%emt 0:03:09]} Ng3+ {[%emt 0:02:02]} 35. Kg1 {[%emt 0:00:03]} Rxf8 {[%emt 0:00:10]} 36. Re5 {[%emt 0:00:27]} Nxf1 {[%emt 0:01:21]} 37. Bxf1 {[%emt 0:00:33]} Qe7 {[%emt 0:00:55]} 38. Rg5 {[%emt 0:02:39]} g3 {[%emt 0:00:23]} 39. Qf3 {[%emt 0:01:05]} Qf6 {[%emt 0:00:13]} 40. Qd3 {[%emt 0:00:00]} f3 {[%emt 0:00:00]} 41. Rxg3 {[%emt 0:04:13]} Qxh4 {[%emt 0:06:19]} 42. Rh3 {[%emt 0:04:51]} Qg4+ {[%emt 0:01:08]} 43. Kh1 {[%emt 0:00:59]} Rf5 {[%emt 0:02:23]} 44. Qe3 {[%emt 0:00:20]} Rf4 {[%emt 0:01:58]} 45. Qg1 {[%emt 0:02:26]} f2 {[%emt 0:02:04]} 46. Qg3 {[%emt 0:01:29]} Qxg3 {[%emt 0:01:37]} 47. Rxg3 {[%emt 0:00:01]} Rxd4 {[%emt 0:00:01]} 48. Re3 {[%emt 0:00:46]} Rg4 {[%emt 0:01:49]} 49. Bg2 {[%emt 0:00:07]} Rh4+ {[%emt 0:03:27]} 50. Rh3 {[%emt 0:00:08]} Rf4 {[%emt 0:00:01]} 51. Bf1 {[%emt 0:00:14]} e5 {[%emt 0:00:26]} 52. Kg2 {[%emt 0:00:15]} e4 {[%emt 0:00:22]} 53. b4 {[%emt 0:01:13]} g6 {[%emt 0:02:17]} 54. a4 {[%emt 0:00:43]} a6 {[%emt 0:01:38]} 55. b5 {[%emt 0:00:07]} axb5 {[%emt 0:00:29]} 56. axb5 {[%emt 0:00:06]} cxb5 {[%emt 0:01:44]} 57. Bxb5 {[%emt 0:00:01]} d4 {[%emt 0:01:01]} 58. Bc4+ {[%emt 0:00:21]} Kg7 {[%emt 0:00:25]} 59. Rb3 {[%emt 0:00:14]} e3 {[%emt 0:00:14]} 60. Rxb7+ {[%emt 0:00:20]} Kh6 {[%emt 0:00:36]} 61. c6 {[%emt 0:01:19]} f1=Q+ {[%emt 0:05:30]} 62. Bxf1 {[%emt 0:00:45]} Rf2+ {[%emt 0:00:01]} 63. Kg1 {[%emt 0:01:04]} Rc2 {[%emt 0:00:02]} 64. c7 {[%emt 0:03:42]} Kg5 {[%emt 0:00:44]} 65. Ba6 {[%emt 0:06:23]} Rc1+ {[%emt 0:07:47]} 66. Kg2 {[%emt 0:00:11]} Kg4 {[%emt 0:07:14]} 67. Ra7 {[%emt 0:00:51]} Rc2+ {[%emt 0:00:08]} 68. Kf1 {[%emt 0:00:30]} Rc1+ {[%emt 0:02:40]} 69. Ke2 {[%emt 0:00:19]} Rc2+ {[%emt 0:00:10]} 70. Kd1 {[%emt 0:00:15]} d3 {[%emt 0:02:07]} 71. Bxd3 {[%emt 0:00:59]} Rc5 {[%emt 0:00:08]} 72. Ba6 {[%emt 0:00:51]} Kf3 {[%emt 0:00:25]} 73. c8=Q {[%emt 0:00:38]} 1-0

[Event "World Senior chT-50 2019"]
[Site "Rhodes"]
[Date "2019.04.19"]
[Round "4.26"]
[White "Hoehn, Michael"]
[Black "Denk, Adolf"]
[Result "1/2-1/2"]
[ECO "D79"]
[WhiteElo "2040"]
[BlackElo "2255"]
[PlyCount "76"]
[EventDate "2019.04.16"]
[EventType "team-tourn"]
[EventCountry "GRE"]
[TimeControl "40/5400+30:1800+30"]

1. Nf3 {[%emt 0:00:00]} g6 {[%emt 0:00:00]} 2. d4 {[%emt 0:00:02]} Bg7 {[%emt 0:00:00]} 3. c4 {[%emt 0:00:10]} Nf6 {[%emt 0:00:00]} 4. g3 {[%emt 0:00:40]} d5 {[%emt 0:00:38]} 5. Bg2 {[%emt 0:01:00]} O-O {[%emt 0:00:26]} 6. O-O {[%emt 0:00:48]} c6 {[%emt 0:01:08]} 7. cxd5 {[%emt 0:00:52]} cxd5 {[%emt 0:00:57]} 8. Nc3 {[%emt 0:01:34]} Nc6 {[%emt 0:00:15]} 9. Ne5 {[%emt 0:05:39]} e6 {[%emt 0:00:28]} 10. Nxc6 {[%emt 0:06:12]} bxc6 {[%emt 0:00:04]} 11. Bf4 {[%emt 0:01:38]} Nd7 {[%emt 0:02:03]} 12. Rc1 {[%emt 0:06:24]} e5 {[%emt 0:21:00]} 13. Be3 {[%emt 0:07:46]} Qf6 {[%emt 0:11:17]} 14. dxe5 {[%emt 0:05:17]} Nxe5 {[%emt 0:02:47]} 15. Bd4 {[%emt 0:06:49]} Re8 {[%emt 0:09:58]} 16. e3 {[%emt 0:04:27]} Qe7 {[%emt 0:03:11]} 17. Bxe5 {[%emt 0:21:08]} Bxe5 {[%emt 0:03:44]} 18. Qa4 {[%emt 0:04:39]} Bd7 {[%emt 0:01:50]} 19. Qa6 {[%emt 0:01:17]} Reb8 {[%emt 0:03:13]} 20. b3 {[%emt 0:02:56]} h5 {[%emt 0:07:56]} 21. Na4 {[%emt 0:04:39]} h4 {[%emt 0:03:10]} 22. Nc5 {[%emt 0:00:52]} Be8 {[%emt 0:02:11]} 23. Rfe1 {[%emt 0:06:27]} Rb5 {[%emt 0:04:00]} 24. Nd3 {[%emt 0:02:44]} Bc7 {[%emt 0:03:02]} 25. Qa4 {[%emt 0:00:46]} hxg3 {[%emt 0:03:34]} 26. hxg3 {[%emt 0:00:08]} Bb6 {[%emt 0:03:09]} 27. Qf4 {[%emt 0:01:00]} Bc7 {[%emt 0:04:50]} 28. Qd4 {[%emt 0:00:43]} a5 {[%emt 0:03:17]} 29. Bf3 {[%emt 0:01:40]} Bb6 {[%emt 0:01:01]} 30. Qe5 {[%emt 0:00:27]} Ra7 {[%emt 0:02:12]} 31. Kg2 {[%emt 0:00:49]} Qxe5 {[%emt 0:00:00]} 32. Nxe5 {[%emt 0:00:02]} Rc7 {[%emt 0:00:20]} 33. Be2 {[%emt 0:00:47]} Rc5 {[%emt 0:00:33]} 34. Rxc5 {[%emt 0:00:11]} Bxc5 {[%emt 0:00:02]} 35. Rc1 {[%emt 0:00:13]} Bd6 {[%emt 0:02:10]} 36. Nd3 {[%emt 0:00:28]} Rb7 {[%emt 0:01:52]} 37. Nc5 {[%emt 0:02:00]} Rb8 {[%emt 0:01:17]} 38. Bg4 {[%emt 0:02:38]} f5 {[%emt 0:00:00]} 1/2-1/2

[Event "World Senior chT-50 2019"]
[Site "Rhodes"]
[Date "2019.04.19"]
[Round "4.27"]
[White "Ernst, Michael"]
[Black "Wolff, Peter"]
[Result "1-0"]
[ECO "D94"]
[WhiteElo "2184"]
[BlackElo "1893"]
[PlyCount "63"]
[EventDate "2019.04.16"]
[EventType "team-tourn"]
[EventCountry "GRE"]
[TimeControl "40/5400+30:1800+30"]

1. d4 {[%emt 0:00:00]} d5 {[%emt 0:00:00]} 2. Nf3 {[%emt 0:00:00]} Nf6 {[%emt 0:00:00]} 3. e3 {[%emt 0:00:00]} c6 {[%emt 0:00:47]} 4. c4 {[%emt 0:00:00]} g6 {[%emt 0:00:28]} 5. Nc3 {[%emt 0:03:14]} Bg7 {[%emt 0:00:06]} 6. Be2 {[%emt 0:00:35]} Bg4 {[%emt 0:00:49]} 7. b3 {[%emt 0:01:48]} O-O {[%emt 0:00:29]} 8. O-O {[%emt 0:00:08]} Nbd7 {[%emt 0:00:49]} 9. Bb2 {[%emt 0:00:16]} Re8 {[%emt 0:02:21]} 10. cxd5 {[%emt 0:02:56]} cxd5 {[%emt 0:00:58]} 11. Ne5 {[%emt 0:07:31]} Bxe2 {[%emt 0:01:34]} 12. Qxe2 {[%emt 0:04:18]} a6 {[%emt 0:05:41]} 13. Rac1 {[%emt 0:02:42]} Qa5 {[%emt 0:29:10]} 14. Nxd7 {[%emt 0:11:36]} Nxd7 {[%emt 0:00:16]} 15. b4 {[%emt 0:00:11]} Qd8 {[%emt 0:06:16]} 16. Nxd5 {[%emt 0:00:23]} Rc8 {[%emt 0:00:25]} 17. Rxc8 {[%emt 0:00:43]} Qxc8 {[%emt 0:00:02]} 18. Rc1 {[%emt 0:01:26]} Qd8 {[%emt 0:03:37]} 19. Qc4 {[%emt 0:06:11]} Nb6 {[%emt 0:08:30]} 20. Nxb6 {[%emt 0:01:34]} Qxb6 {[%emt 0:00:02]} 21. h3 {[%emt 0:01:51]} e6 {[%emt 0:06:48]} 22. Qc5 {[%emt 0:07:52]} Qd8 {[%emt 0:00:42]} 23. a3 {[%emt 0:06:53]} Bf8 {[%emt 0:01:01]} 24. Qc4 {[%emt 0:02:15]} Bd6 {[%emt 0:01:33]} 25. Qc3 {[%emt 0:06:41]} f6 {[%emt 0:08:33]} 26. Qc4 {[%emt 0:02:03]} Kg7 {[%emt 0:00:37]} 27. e4 {[%emt 0:00:29]} g5 {[%emt 0:06:38]} 28. d5 {[%emt 0:01:56]} Bf4 {[%emt 0:03:59]} 29. Rd1 {[%emt 0:01:47]} exd5 {[%emt 0:01:52]} 30. Rd3 {[%emt 0:03:35]} Qb6 {[%emt 0:04:08]} 31. Rxd5 {[%emt 0:01:09]} Kh6 {[%emt 0:01:25]} 32. Rd7 {[%emt 0:00:49]} 1-0

[Event "World Senior chT-50 2019"]
[Site "Rhodes"]
[Date "2019.04.19"]
[Round "4.28"]
[White "Theuer, Carsten"]
[Black "Kranzl, Peter"]
[Result "0-1"]
[ECO "B17"]
[WhiteElo "1868"]
[BlackElo "2145"]
[PlyCount "56"]
[EventDate "2019.04.16"]
[EventType "team-tourn"]
[EventCountry "GRE"]
[TimeControl "40/5400+30:1800+30"]

1. e4 {[%emt 0:00:00]} c6 {[%emt 0:00:00]} 2. d4 {[%emt 0:00:00]} d5 {[%emt 0:00:00]} 3. Nc3 {[%emt 0:00:00]} dxe4 {[%emt 0:00:08]} 4. Nxe4 {[%emt 0:00:10]} Nd7 {[%emt 0:00:30]} 5. Nf3 {[%emt 0:00:55]} Ngf6 {[%emt 0:00:55]} 6. Ng3 {[%emt 0:01:17]} e6 {[%emt 0:01:33]} 7. Bc4 {[%emt 0:06:26]} Bd6 {[%emt 0:03:16]} 8. Ne2 {[%emt 0:01:16]} Qc7 {[%emt 0:02:15]} 9. h3 {[%emt 0:02:43]} O-O {[%emt 0:05:40]} 10. Be3 {[%emt 0:03:00]} c5 {[%emt 0:08:38]} 11. dxc5 {[%emt 0:08:01]} Nxc5 {[%emt 0:06:21]} 12. Bxc5 {[%emt 0:03:49]} Bxc5 {[%emt 0:03:10]} 13. Bd3 {[%emt 0:04:20]} Qb6 {[%emt 0:05:08]} 14. O-O {[%emt 0:03:11]} Qxb2 {[%emt 0:01:46]} 15. Qb1 {[%emt 0:06:34]} Qxb1 {[%emt 0:03:05]} 16. Raxb1 {[%emt 0:00:15]} b6 {[%emt 0:01:28]} 17. Ng3 {[%emt 0:06:51]} Bb7 {[%emt 0:02:50]} 18. Ng5 {[%emt 0:04:41]} Rfd8 {[%emt 0:06:18]} 19. N5e4 {[%emt 0:03:07]} Nxe4 {[%emt 0:01:54]} 20. Bxe4 {[%emt 0:00:34]} Bxe4 {[%emt 0:00:48]} 21. Nxe4 {[%emt 0:00:11]} Be7 {[%emt 0:00:22]} 22. Rfd1 {[%emt 0:03:47]} Rac8 {[%emt 0:04:42]} 23. Rxd8+ {[%emt 0:15:44]} Rxd8 {[%emt 0:00:44]} 24. Re1 {[%emt 0:01:19]} f5 {[%emt 0:06:35]} 25. Ng3 {[%emt 0:01:43]} Kf7 {[%emt 0:00:20]} 26. Nf1 {[%emt 0:02:38]} Rd4 {[%emt 0:06:22]} 27. Re2 {[%emt 0:01:29]} Ra4 {[%emt 0:00:53]} 28. c3 {[%emt 0:01:39]} Bf6 {[%emt 0:00:28]} 0-1

[Event "World Senior chT-50 2019"]
[Site "Rhodes"]
[Date "2019.04.19"]
[Round "4.29"]
[White "Kristiansen, Erling"]
[Black "Mitrandzas, Athanasios"]
[Result "1/2-1/2"]
[ECO "E11"]
[WhiteElo "2134"]
[BlackElo "2055"]
[PlyCount "37"]
[EventDate "2019.04.16"]
[EventType "team-tourn"]
[EventCountry "GRE"]
[TimeControl "40/5400+30:1800+30"]

1. d4 {[%emt 0:00:00]} Nf6 {[%emt 0:00:02]} 2. c4 {[%emt 0:00:00]} e6 {[%emt 0:00:16]} 3. Nf3 {[%emt 0:00:03]} Bb4+ {[%emt 0:00:13]} 4. Bd2 {[%emt 0:01:48]} a5 {[%emt 0:00:23]} 5. Nc3 {[%emt 0:00:08]} O-O {[%emt 0:00:46]} 6. Qc2 {[%emt 0:00:04]} d6 {[%emt 0:01:40]} 7. e4 {[%emt 0:00:39]} e5 {[%emt 0:18:37]} 8. dxe5 {[%emt 0:04:05]} dxe5 {[%emt 0:00:08]} 9. Rd1 {[%emt 0:00:04]} Bg4 {[%emt 0:03:39]} 10. Be2 {[%emt 0:03:29]} Nc6 {[%emt 0:03:21]} 11. Be3 {[%emt 0:02:05]} Qe7 {[%emt 0:00:41]} 12. O-O {[%emt 0:01:34]} Bxc3 {[%emt 0:01:04]} 13. bxc3 {[%emt 0:00:16]} Rfd8 {[%emt 0:06:47]} 14. Rb1 {[%emt 0:00:18]} b6 {[%emt 0:02:37]} 15. Rb5 {[%emt 0:03:33]} Bxf3 {[%emt 0:03:18]} 16. Bxf3 {[%emt 0:00:08]} Na7 {[%emt 0:00:21]} 17. Rbb1 {[%emt 0:02:09]} Nd7 {[%emt 0:06:05]} 18. Be2 {[%emt 0:02:10]} Nc5 {[%emt 0:00:44]} 19. Rfd1 {[%emt 0:00:55]} 1/2-1/2